fUSD/lending_fUSD_20240729
["ID","MTS","AMOUNT","RATE_DAILY","PERIOD"]
[333502511,1722214251080,-791.99,0.00010999,2]
[333502512,1722214251089,-791.99,0.00010999,2]
[333502513,1722214251098,-500.0,0.00010999,2]
[333502514,1722214251107,-791.99,0.00010999,2]
[333502515,1722214251117,-634.13449414,0.00010999,2]
[333502516,1722214251126,-791.99,0.00010999,2]
[333502517,1722214251135,-791.99,0.00010999,2]
[333502518,1722214251145,-791.99,0.00010999,2]
[333502519,1722214251153,-791.99,0.00010999,2]
[333502520,1722214251162,-444.10785337,0.00010999,2]
[333502521,1722214251171,-791.99,0.00010999,2]
[333502522,1722214251180,-791.99,0.00010999,2]
[333502523,1722214251189,-791.99,0.00010999,2]
[333502524,1722214251199,-791.99,0.00010999,2]
[333502525,1722214251208,-791.99,0.00010999,2]
[333502526,1722214251216,-791.99,0.00010999,2]
[333502527,1722214251225,-791.99,0.00010999,2]
[333502528,1722214251234,-791.99,0.00010999,2]
[333502529,1722214251243,-791.99,0.00010999,2]
[333502530,1722214251252,-791.99,0.00010999,2]
[333502531,1722214251261,-500.0,0.00010999,2]
[333502532,1722214251270,-791.99,0.00010999,2]
[333502533,1722214251280,-791.99,0.00010999,2]
[333502534,1722214251289,-500.0,0.00010999,2]
[333502535,1722214251297,-791.99,0.00010999,2]
[333502536,1722214251306,-500.0,0.00010999,2]
[333502537,1722214251315,-792.08000001,0.00010999,2]
[333502538,1722214251324,-500.0,0.00010999,2]
[333502539,1722214251334,-500.0,0.00010999,2]
[333502540,1722214251343,-500.0,0.00010999,2]
[333502541,1722214251352,-500.0,0.00010999,2]
[333502542,1722214251363,-500.0,0.00010999,2]
[333502543,1722214251375,-500.0,0.00010999,2]
[333502544,1722214251384,-317.13,0.00010999,2]
[333502545,1722214251393,-500.0,0.00010999,2]
[333502546,1722214251402,-500.0,0.00010999,2]
[333502547,1722214251411,-500.0,0.00010999,2]
[333502548,1722214251421,-500.0,0.00010999,2]
[333502549,1722214251430,-500.0,0.00010999,2]
[333502550,1722214251438,-500.0,0.00010999,2]
[333502551,1722214251447,-500.0,0.00010999,2]
[333502552,1722214251457,-490.41,0.00010999,2]
[333502553,1722214251467,-500.0,0.00010999,2]
[333502554,1722214251475,-500.0,0.00010999,2]
[333502555,1722214251484,-500.0,0.00010999,2]
[333502556,1722214251493,-500.0,0.00010999,2]
[333502557,1722214251502,-500.0,0.00010999,2]
[333502558,1722214251511,-642.34,0.00010999,2]
[333502559,1722214251520,-500.0,0.00010999,2]
[333502560,1722214251528,-500.0,0.00010999,2]
[333502561,1722214251538,-500.0,0.00010999,2]
[333502562,1722214251546,-500.0,0.00010999,2]
[333502563,1722214251556,-500.0,0.00010999,2]
[333502564,1722214251565,-500.0,0.00010999,2]
[333502565,1722214251574,-500.0,0.00010999,2]
[333502566,1722214251583,-500.0,0.00010999,2]
[333502567,1722214251592,-500.0,0.00010999,2]
[333502568,1722214251601,-500.0,0.00010999,2]
[333502569,1722214251611,-500.0,0.00010999,2]
[333502570,1722214251620,-500.0,0.00010999,2]
[333502571,1722214251629,-500.0,0.00010999,2]
[333502572,1722214251638,-500.0,0.00010999,2]
[333502573,1722214251647,-500.0,0.00010999,2]
[333502574,1722214251656,-500.0,0.00010999,2]
[333502575,1722214251665,-500.0,0.00010999,2]
[333502576,1722214251675,-500.0,0.00010999,2]
[333502577,1722214251684,-647.46,0.00010999,2]
[333502578,1722214251692,-2000.0,0.00010999,2]
[333502579,1722214251701,-500.0,0.00010999,2]
[333502580,1722214251710,-500.0,0.00010999,2]
[333502581,1722214251719,-500.0,0.00010999,2]
[333502582,1722214251727,-500.0,0.00010999,2]
[333502583,1722214251736,-500.0,0.00010999,2]
[333502584,1722214251745,-500.0,0.00010999,2]
[333502585,1722214251755,-287.1,0.00010999,2]
[333502586,1722214251764,-500.0,0.00010999,2]
[333502587,1722214251773,-500.0,0.00010999,2]
[333502588,1722214251783,-500.0,0.00010999,2]
[333502589,1722214251792,-500.0,0.00010999,2]
[333502590,1722214251802,-500.0,0.00010999,2]
[333502591,1722214251811,-500.0,0.00010999,2]
[333502592,1722214251821,-595.43,0.00010999,2]
[333502593,1722214251830,-500.0,0.00010999,2]
[333502594,1722214251839,-500.0,0.00010999,2]
[333502595,1722214251849,-500.0,0.00010999,2]
[333502596,1722214251858,-500.0,0.00010999,2]
[333502597,1722214251868,-500.0,0.00010999,2]
[333502598,1722214251877,-500.0,0.00010999,2]
[333502599,1722214251886,-200.0,0.00010999,2]
[333502600,1722214251896,-218.59,0.00010999,2]
[333502601,1722214251905,-500.0,0.00010999,2]
[333502602,1722214251914,-500.0,0.00010999,2]
[333502603,1722214251923,-500.0,0.00010999,2]
[333502604,1722214251933,-500.0,0.00010999,2]
[333502605,1722214251942,-500.0,0.00010999,2]
[333502606,1722214251951,-500.0,0.00010999,2]
[333502607,1722214251960,-638.60090604,0.00010999,2]
[333502608,1722214251969,-500.0,0.00010999,2]
[333502609,1722214251979,-500.0,0.00010999,2]
[333502610,1722214251988,-500.0,0.00010999,2]
[333502611,1722214251997,-500.0,0.00010999,2]
[333502612,1722214252006,-500.0,0.00010999,2]
[333502613,1722214252016,-500.0,0.00010999,2]
[333502614,1722214252025,-296.41291166,0.00010999,2]
[333502615,1722214252034,-500.0,0.00010999,2]
[333502616,1722214252044,-500.0,0.00010999,2]
[333502617,1722214252053,-500.0,0.00010999,2]
[333502618,1722214252062,-500.0,0.00010999,2]
[333502619,1722214252071,-500.0,0.00010999,2]
[333502620,1722214252080,-500.0,0.00010999,2]
[333502621,1722214252089,-500.0,0.00010999,2]
[333502622,1722214252098,-347.19,0.00010999,2]
[333502623,1722214252107,-500.0,0.00010999,2]
[333502624,1722214252118,-500.0,0.00010999,2]
[333502625,1722214252127,-500.0,0.00010999,2]
[333502626,1722214252136,-500.0,0.00010999,2]
[333502627,1722214252145,-500.0,0.00010999,2]
[333502628,1722214252155,-500.0,0.00010999,2]
[333502629,1722214252165,-587.44332693,0.00010999,2]
[333502630,1722214252175,-500.0,0.00010999,2]
[333502631,1722214252184,-500.0,0.00010999,2]
[333502632,1722214252194,-500.0,0.00010999,2]
[333502633,1722214252203,-500.0,0.00010999,2]
[333502634,1722214252213,-510.72,0.00010999,2]
[333502635,1722214252222,-500.0,0.00010999,2]
[333502636,1722214252231,-500.0,0.00010999,2]
[333502637,1722214252240,-500.0,0.00010999,2]
[333502638,1722214252250,-500.0,0.00010999,2]
[333502639,1722214252259,-500.0,0.00010999,2]
[333502640,1722214252268,-500.0,0.00010999,2]
[333502641,1722214252278,-500.0,0.00010999,2]
[333502642,1722214252287,-223.1,0.00010999,2]
[333502643,1722214252295,-500.0,0.00010999,2]
[333502644,1722214252304,-500.0,0.00010999,2]
[333502645,1722214252314,-500.0,0.00010999,2]
[333502646,1722214252324,-500.0,0.00010999,2]
[333502647,1722214252333,-500.0,0.00010999,2]
[333502648,1722214252342,-482.95,0.00010999,2]
[333502649,1722214252351,-529.79231042,0.00010999,2]
[333502650,1722214252363,-500.0,0.00010999,2]
[333502651,1722214252376,-500.0,0.00010999,2]
[333502652,1722214252385,-500.0,0.00010999,2]
[333502653,1722214252394,-500.0,0.00010999,2]
[333502654,1722214252403,-500.0,0.00010999,2]
[333502655,1722214252412,-500.0,0.00010999,2]
[333502656,1722214252422,-500.0,0.00010999,2]
[333502657,1722214252431,-500.0,0.00010999,2]
[333502658,1722214252440,-500.0,0.00010999,2]
[333502659,1722214252451,-500.0,0.00010999,2]
[333502660,1722214252461,-564.35,0.00010999,2]
[333502661,1722214252470,-519.1082608,0.00010999,2]
[333502662,1722214252479,-500.0,0.00010999,2]
[333502663,1722214252488,-500.0,0.00010999,2]
[333502664,1722214252497,-500.0,0.00010999,2]
[333502665,1722214252507,-500.0,0.00010999,2]
[333502666,1722214252516,-500.0,0.00010999,2]
[333502667,1722214252525,-500.0,0.00010999,2]
[333502668,1722214252534,-500.0,0.00010999,2]
[333502669,1722214252544,-500.0,0.00010999,2]
[333502670,1722214252554,-500.0,0.00010999,2]
[333502671,1722214252563,-500.0,0.00010999,2]
[333502672,1722214252572,-500.0,0.00010999,2]
[333502673,1722214252581,-500.0,0.00010999,2]
[333502674,1722214252591,-500.0,0.00010999,2]
[333502675,1722214252600,-500.0,0.00010999,2]
[333502676,1722214252610,-500.0,0.00010999,2]
[333502677,1722214252619,-500.0,0.00010999,2]
[333502678,1722214252628,-500.0,0.00010999,2]
[333502679,1722214252637,-500.0,0.00010999,2]
[333502680,1722214252646,-500.0,0.00010999,2]
[333502681,1722214252655,-500.0,0.00010999,2]
[333502682,1722214252665,-579.46,0.00010999,2]
[333502683,1722214252674,-500.0,0.00010999,2]
[333502684,1722214252684,-500.0,0.00010999,2]
[333502685,1722214252693,-500.0,0.00010999,2]
[333502686,1722214252703,-192.87422176,0.00010999,2]
[333502687,1722214252712,-500.0,0.00010999,2]
[333502688,1722214252722,-500.0,0.00010999,2]
[333502689,1722214252731,-500.0,0.00010999,2]
[333502690,1722214252740,-500.0,0.00010999,2]
[333502691,1722214252750,-500.0,0.00010999,2]
[333502692,1722214252760,-500.0,0.00010999,2]
[333502693,1722214252769,-500.0,0.00010999,2]
[333502694,1722214252779,-500.0,0.00010999,2]
[333502695,1722214252788,-500.0,0.00010999,2]
[333502696,1722214252798,-216.41,0.00010999,2]
[333502697,1722214252807,-500.0,0.00010999,2]
[333502698,1722214252817,-500.0,0.00010999,2]
[333502699,1722214252826,-500.0,0.00010999,2]
[333502700,1722214252835,-500.0,0.00010999,2]
[333502701,1722214252844,-500.0,0.00010999,2]
[333502702,1722214252853,-500.0,0.00010999,2]
[333502703,1722214252864,-500.0,0.00010999,2]
[333502704,1722214252873,-500.0,0.00010999,2]
[333502705,1722214252882,-500.0,0.00010999,2]
[333502706,1722214252890,-500.0,0.00010999,2]
[333502707,1722214252899,-500.0,0.00010999,2]
[333502708,1722214252909,-500.0,0.00010999,2]
[333502709,1722214252918,-500.0,0.00010999,2]
[333502710,1722214252927,-500.0,0.00010999,2]
[333502711,1722214252936,-500.0,0.00010999,2]
[333502712,1722214252945,-500.0,0.00010999,2]
[333502713,1722214252954,-500.0,0.00010999,2]
[333502714,1722214252963,-500.0,0.00010999,2]
[333502715,1722214252973,-500.0,0.00010999,2]
[333502716,1722214252982,-192.31217181,0.00010999,2]
[333502717,1722214252991,-500.0,0.00010999,2]
[333502718,1722214253001,-500.0,0.00010999,2]
[333502719,1722214253010,-439.72,0.00010999,2]
[333502720,1722214253019,-500.0,0.00010999,2]
[333502721,1722214253028,-500.0,0.00010999,2]
[333502722,1722214253037,-500.0,0.00010999,2]
[333502723,1722214253046,-500.0,0.00010999,2]
[333502724,1722214253055,-500.0,0.00010999,2]
[333502725,1722214253065,-326.45,0.00010999,2]
[333502726,1722214253074,-507.00279796,0.00010999,2]
[333502727,1722214253084,-500.0,0.00010999,2]
[333502728,1722214253093,-505.95648663,0.00010999,2]
[333502729,1722214253102,-500.0,0.00010999,2]
[333502730,1722214253111,-547.54586278,0.00010999,2]
[333502731,1722214253121,-500.0,0.00010999,2]
[333502732,1722214253130,-500.0,0.00010999,2]
[333502733,1722214253139,-500.0,0.00010999,2]
[333502734,1722214253147,-500.0,0.00010999,2]
[333502735,1722214253156,-508.02686327,0.00010999,2]
[333502736,1722214253166,-500.0,0.00010999,2]
[333502737,1722214253175,-467.78,0.00010999,2]
[333502738,1722214253184,-500.0,0.00010999,2]
[333502739,1722214253193,-559.19,0.00010999,2]
[333502740,1722214253202,-500.0,0.00010999,2]
[333502741,1722214253211,-500.0,0.00010999,2]
[333502742,1722214253221,-500.0,0.00010999,2]
[333502743,1722214253230,-500.0,0.00010999,2]
[333502744,1722214253240,-500.0,0.00010999,2]
[333502745,1722214253248,-500.0,0.00010999,2]
[333502746,1722214253258,-500.0,0.00010999,2]
[333502747,1722214253268,-500.0,0.00010999,2]
[333502748,1722214253277,-505.89375547,0.00010999,2]
[333502749,1722214253286,-587.58,0.00010999,2]
[333502750,1722214253295,-509.31356043,0.00010999,2]
[333502751,1722214253305,-500.0,0.00010999,2]
[333502752,1722214253314,-460.57836321,0.00010999,2]
[333502753,1722214253323,-503.64407696,0.00010999,2]
[333502754,1722214253332,-500.0,0.00010999,2]
[333502755,1722214253341,-500.0,0.00010999,2]
[333502756,1722214253351,-500.0,0.00010999,2]
[333502757,1722214253361,-500.0,0.00010999,2]
[333502758,1722214253371,-527.17,0.00010999,2]
[333502759,1722214253383,-500.0,0.00010999,2]
[333502760,1722214253392,-500.0,0.00010999,2]
[333502761,1722214253402,-500.0,0.00010999,2]
[333502762,1722214253411,-500.0,0.00010999,2]
[333502763,1722214253421,-500.0,0.00010999,2]
[333502764,1722214253431,-500.0,0.00010999,2]
[333502765,1722214253440,-500.0,0.00010999,2]
[333502766,1722214253452,-500.0,0.00010999,2]
[333502767,1722214253462,-500.0,0.00010999,2]
[333502768,1722214253471,-500.0,0.00010999,2]
[333502769,1722214253480,-192.53334015,0.00010999,2]
[333502770,1722214253490,-500.0,0.00010999,2]
[333502771,1722214253499,-500.0,0.00010999,2]
[333502772,1722214253508,-500.0,0.00010999,2]
[333502773,1722214253518,-500.0,0.00010999,2]
[333502774,1722214253527,-500.0,0.00010999,2]
[333502775,1722214253536,-500.0,0.00010999,2]
[333502776,1722214253546,-500.0,0.00010999,2]
[333502777,1722214253555,-500.0,0.00010999,2]
[333502778,1722214253565,-507.3064915,0.00010999,2]
[333502779,1722214253574,-500.0,0.00010999,2]
[333502780,1722214253583,-500.0,0.00010999,2]
[333502781,1722214253593,-766.07,0.00010999,2]
[333502782,1722214253602,-500.0,0.00010999,2]
[333502783,1722214253613,-766.07,0.00010999,2]
[333502784,1722214253623,-500.0,0.00010999,2]
[333502785,1722214253633,-766.07,0.00010999,2]
[333502786,1722214253643,-500.0,0.00010999,2]
[333502787,1722214253652,-500.0,0.00010999,2]
[333502788,1722214253662,-766.07,0.00010999,2]
[333502789,1722214253672,-408.24848524,0.00010999,2]
[333502790,1722214253682,-509.34162358,0.00010999,2]
[333502791,1722214253692,-766.07,0.00010999,2]
[333502792,1722214253702,-766.07,0.00010999,2]
[333502793,1722214253711,-766.07,0.00010999,2]
[333502794,1722214253721,-766.07,0.00010999,2]
[333502795,1722214253730,-766.07,0.00010999,2]
[333502796,1722214253740,-766.07,0.00010999,2]
[333502797,1722214253749,-766.07,0.00010999,2]
[333502798,1722214253759,-516.82415601,0.00010999,2]
[333502799,1722214253768,-766.07,0.00010999,2]
[333502800,1722214253778,-766.07,0.00010999,2]
[333502801,1722214253787,-766.07,0.00010999,2]
[333502802,1722214253796,-766.07,0.00010999,2]
[333502803,1722214253806,-766.21,0.00010999,2]
[333502804,1722214253815,-498.44230106,0.00010999,2]
[333502805,1722214253962,-504.2902436,0.00010999,2]
[333502806,1722214253972,-507.3734366,0.00010999,2]
[333502807,1722214253981,-500.0,0.00010999,2]
[333502808,1722214253990,-500.0,0.00010999,2]
[333502809,1722214253999,-513.96275042,0.00010999,2]
[333502810,1722214254008,-503.71490527,0.00010999,2]
[333502811,1722214254017,-500.0,0.00010999,2]
[333502812,1722214254026,-506.60571594,0.00010999,2]
[333502813,1722214254035,-500.0,0.00010999,2]
[333502814,1722214254044,-522.43801026,0.00010999,2]
[333502815,1722214254053,-500.0,0.00010999,2]
[333502816,1722214254062,-500.0,0.00010999,2]
[333502817,1722214254071,-500.0,0.00010999,2]
[333502818,1722214254080,-500.0,0.00010999,2]
[333502819,1722214254089,-500.0,0.00010999,2]
[333502820,1722214254098,-412.53,0.00010999,2]
[333502821,1722214254107,-500.0,0.00010999,2]
[333502822,1722214254118,-506.55364701,0.00010999,2]
[333502823,1722214254127,-500.0,0.00010999,2]
[333502824,1722214254136,-500.0,0.00010999,2]
[333502825,1722214254145,-500.0,0.00010999,2]
[333502826,1722214254156,-504.24128485,0.00010999,2]
[333502827,1722214254165,-500.0,0.00010999,2]
[333502828,1722214254174,-500.0,0.00010999,2]
[333502829,1722214254183,-500.0,0.00010999,2]
[333502830,1722214254192,-500.0,0.00010999,2]
[333502831,1722214254201,-500.0,0.00010999,2]
[333502832,1722214254210,-505.90365165,0.00010999,2]
[333502833,1722214254218,-500.0,0.00010999,2]
[333502834,1722214254227,-500.0,0.00010999,2]
[333502835,1722214254236,-500.0,0.00010999,2]
[333502836,1722214254245,-500.0,0.00010999,2]
[333502837,1722214254254,-500.0,0.00010999,2]
[333502838,1722214254264,-500.0,0.00010999,2]
[333502839,1722214254272,-297.54,0.00010999,2]
[333502840,1722214254281,-159.13067174,0.00010999,2]
[333502841,1722214254290,-500.0,0.00010999,2]
[333502842,1722214254299,-500.0,0.00010999,2]
[333502843,1722214254308,-500.0,0.00010999,2]
[333502844,1722214254317,-500.0,0.00010999,2]
[333502845,1722214254326,-500.0,0.00010999,2]
[333502846,1722214254335,-540.2,0.00010999,2]
[333502847,1722214254344,-534.53835712,0.00010999,2]
[333502848,1722214254353,-500.0,0.00010999,2]
[333502849,1722214254363,-500.0,0.00010999,2]
[333502850,1722214254374,-500.0,0.00010999,2]
[333502851,1722214254384,-500.0,0.00010999,2]
[333502852,1722214254393,-503.76369397,0.00010999,2]
[333502853,1722214254402,-500.78521567,0.00010999,2]
[333502854,1722214254411,-500.0,0.00010999,2]
[333502855,1722214254422,-500.0,0.00010999,2]
[333502856,1722214254431,-502.06583037,0.00010999,2]
[333502857,1722214254440,-522.48,0.00010999,2]
[333502858,1722214254449,-500.0,0.00010999,2]
[333502859,1722214254461,-502.72057373,0.00010999,2]
[333502860,1722214254471,-500.0,0.00010999,2]
[333502861,1722214254479,-502.17238409,0.00010999,2]
[333502862,1722214254488,-504.78143206,0.00010999,2]
[333502863,1722214254497,-500.0,0.00010999,2]
[333502864,1722214254507,-584.87460216,0.00010999,2]
[333502865,1722214254516,-500.0,0.00010999,2]
[333502866,1722214254524,-501.35600927,0.00010999,2]
[333502867,1722214254533,-503.55940129,0.00010999,2]
[333502868,1722214254542,-500.0,0.00010999,2]
[333502869,1722214254551,-500.0,0.00010999,2]
[333502870,1722214254561,-500.0,0.00010999,2]
[333502871,1722214254570,-500.0,0.00010999,2]
[333502872,1722214254579,-500.6424813,0.00010999,2]
[333502873,1722214254588,-500.0,0.00010999,2]
[333502874,1722214254598,-501.28258419,0.00010999,2]
[333502875,1722214254607,-500.0,0.00010999,2]
[333502876,1722214254617,-500.0,0.00010999,2]
[333502877,1722214254626,-500.0,0.00010999,2]
[333502878,1722214254635,-500.0,0.00010999,2]
[333502879,1722214254644,-500.0,0.00010999,2]
[333502880,1722214254653,-500.70088056,0.00010999,2]
[333502881,1722214254662,-500.0,0.00010999,2]
[333502882,1722214254671,-500.0,0.00010999,2]
[333502883,1722214254680,-500.0,0.00010999,2]
[333502884,1722214254689,-500.0,0.00010999,2]
[333502885,1722214254698,-500.0,0.00010999,2]
[333502886,1722214254707,-500.0,0.00010999,2]
[333502887,1722214254716,-500.0,0.00010999,2]
[333502888,1722214254725,-500.0,0.00010999,2]
[333502889,1722214254734,-506.74256841,0.00010999,2]
[333502890,1722214254743,-500.0,0.00010999,2]
[333502891,1722214254751,-872.59,0.00010999,2]
[333502892,1722214254760,-3000.0,0.00010999,2]
[333502893,1722214254770,-294363.34586388,0.00011,2]
[333502894,1722214254779,-606805.0259072,0.00011,2]
[333502895,1722214255030,-1134.13449414,0.00011,2]
[333502896,1722214255041,-673.98,0.00011,2]
[333502897,1722214255052,-293261.58687483,0.00011,2]
[333502898,1722214255063,-850.03340466,0.00011,2]
[333502909,1722215432282,-251.04594436,8.219e-05,2]
[333502910,1722215432459,-140.77405564,8.219e-05,2]
[333502911,1722215432468,-1826.96,9.873e-05,2]
[333502912,1722215432478,-176.55,9.882e-05,2]
[333502913,1722215432488,-1607.7416,9.9e-05,2]
[333502914,1722215432497,-130.51855653,9.901e-05,2]
[333502915,1722215432509,-269.48144347,9.901e-05,2]
[333502916,1722215432519,-600.0,9.907e-05,2]
[333502917,1722215432528,-118.33780011,9.964e-05,2]
[333502921,1722215432582,-55.17219989,9.964e-05,2]
[333502922,1722215432809,-337.99,0.0001,2]
[333502923,1722215432820,-500.0,0.0001,2]
[333502924,1722215432830,-500.0,0.0001,2]
[333502925,1722215432839,-273.97,0.0001,2]
[333502926,1722215432848,-500.0,0.0001,2]
[333502927,1722215432858,-1250.0,0.0001,2]
[333502928,1722215432867,-420.34,0.00010241,2]
[333502929,1722215432877,-174.28,0.00010404,2]
[333502930,1722215432887,-391.82,0.00010473,2]
[333502931,1722215432897,-150.0,0.0001077,2]
[333502932,1722215432906,-1011.93442353,0.0001078,2]
[333502933,1722215432915,-150.0,0.0001079,2]
[333502934,1722215432924,-2626.95102062,0.000108,2]
[333502935,1722215438369,-550.13842932,0.000108,2]
[333503059,1722215440447,-460.63094984,0.000108,2]
[333503060,1722215440459,-264.4956,0.000108,2]
[333503061,1722215440470,-1467.29741007,0.000108,2]
[333503062,1722215440568,-875.6832297,0.000108,2]
[333503063,1722215440633,-333.81892786,0.000108,2]
[333503064,1722215440645,-1147.94373023,0.000108,2]
[333503065,1722215440656,-896.82497611,0.000108,2]
[333503066,1722215440668,-383.57266039,0.000108,2]
[333503067,1722215440679,-1950.58610927,0.000108,2]
[333503068,1722215440765,-295.58402518,0.000108,2]
[333503069,1722215440777,-3310.30765838,0.000108,2]
[333503070,1722215440789,-7212.26827649,0.000108,2]
[333503071,1722215440799,-150.0,0.00010859,2]
[333503072,1722215440808,-150.0,0.00010871,2]
[333503073,1722215440818,-1154.51842109,0.0001088,2]
[333503074,1722215440829,-758.0,0.0001089,2]
[333503075,1722215440838,-150.0,0.00010897,2]
[333503076,1722215440847,-3774.7923,0.00010898,2]
[333503077,1722215440856,-150.169,0.00010899,2]
[333503078,1722215440866,-150.0,0.00010899,2]
[333503079,1722215440875,-1925.0,0.00010899,2]
[333503080,1722215440884,-1255.0,0.00010899,2]
[333503081,1722215440894,-362.0,0.00010899,2]
[333503082,1722215440903,-1581.0,0.00010899,2]
[333503083,1722215440912,-317.881,0.00010899,2]
[333503084,1722215440922,-799.0,0.00010899,2]
[333503085,1722215440931,-1642.687,0.00010899,2]
[333503086,1722215440940,-2500.0,0.000109,2]
[333503087,1722215440950,-181.4644042,0.000109,2]
[333503088,1722215440959,-181.46440419,0.000109,2]
[333503089,1722215440968,-181.46440419,0.000109,2]
[333503090,1722215440977,-5546.09733786,0.00010948,2]
[333503091,1722215440987,-157.39505539,0.00010958,2]
[333503092,1722215440996,-500.0,0.00010958,2]
[333503093,1722215441006,-500.0,0.00010958,2]
[333503094,1722215441015,-632.15,0.00010958,2]
[333503095,1722215441025,-500.0,0.00010958,2]
[333503096,1722215441035,-500.0,0.00010958,2]
[333503097,1722215441044,-500.0,0.00010958,2]
[333503098,1722215441054,-851.73,0.00010958,2]
[333503099,1722215441063,-484.24914601,0.00010958,2]
[333503101,1722215443387,-150.0,0.00010774,2]
[333503102,1722215443396,-181.46440419,0.000109,2]
[333503103,1722215443405,-87.63847064,0.00010902,2]
[333503104,1722215443416,-62.36152936,0.00010902,2]
[333503105,1722215443426,-15.75085399,0.00010958,2]
[333503106,1722215443435,-254.17299482,0.00010958,2]
[333503107,1722215443618,-245.82700518,0.00010958,2]
[333503108,1722215443627,-262.93299482,0.00010958,2]
[333503109,1722215443638,-237.06700518,0.00010958,2]
[333503110,1722215443648,-500.0,0.00010958,2]
[333503111,1722215443657,-35.76153736,0.00010958,2]
[333503112,1722215443679,-150.0,0.000109,2]
[333503113,1722215443688,-191.04,0.00010958,2]
[333503122,1722215446394,-150.0,0.00010862,2]
[333503123,1722215446404,-150.0,0.00010922,2]
[333503124,1722215446414,-273.19846264,0.00010958,2]
[333503125,1722215446423,-500.0,0.00010958,2]
[333503126,1722215446432,-510.21652241,0.00010958,2]
[333503127,1722215446441,-160.90704532,0.00010959,2]
[333503128,1722215446453,-89.09295468,0.00010959,2]
[333503129,1722215446463,-328.86528105,0.00010986,2]
[333503130,1722215446474,-171.13471895,0.00010986,2]
[333503131,1722215446482,-328.86528105,0.0001099,2]
[333503132,1722215446493,-1483.94,0.0001099,2]
[333503133,1722215446504,-20580.11604142,0.0001099,2]
[333503134,1722215446515,-48051.31689709,0.0001099,2]
[333503135,1722215446526,-1712.25832484,0.0001099,2]
[333503136,1722215446555,-150.0,0.00010902,2]
[333503137,1722215446565,-181034.39643229,0.0001099,2]
[333503138,1722215446575,-617.62356812,0.00010997,2]
[333503139,1722215446584,-3320.8294556,0.00010998,2]
[333503140,1722215446593,-8165.972956,0.00010998,2]
[333503141,1722215446602,-24721.3071908,0.00010998,2]
[333503142,1722215446610,-45100.5502177,0.00010998,2]
[333503143,1722215446621,-1152.07979419,0.00010999,3]
[333503144,1722215446630,-364.80537973,0.00010999,2]
[333503145,1722215446640,-222503.58644527,0.00011,2]
[333503146,1722215446649,-464932.684556,0.00011,2]
[333503147,1722215446661,-344.65771857,0.00011,2]
[333503148,1722215446672,-283.49453764,0.00011,2]
[333503149,1722215446690,-150.0,0.00010794,2]
[333503150,1722215446699,-1309.03154576,0.00011,2]
[333503151,1722215446711,-333.5134452,0.00011,2]
[333503152,1722215446728,-150.0,0.00010914,2]
[333503153,1722215446738,-140.05976315,0.00011,2]
[333503310,1722216615989,205.87,0.000149,31]
[333503313,1722216632992,-382.55,8.219e-05,2]